fUST/lending_fUST_20250705
["ID","MTS","AMOUNT","RATE_DAILY","PERIOD"]
[369773997,1751723449892,-589.15,0.00019726,2]
[369773998,1751723449902,-358.62420387,0.00019726,2]
[369774001,1751723449911,-2585.05,0.00019726,2]
[369774002,1751723449921,-1307.5,0.00019726,2]
[369774004,1751723449931,-460.0,0.00019726,2]
[369774006,1751723449941,-475.76,0.00019726,2]
[369774008,1751723449950,-200.01418152,0.00019726,2]
[369774010,1751723449960,-460.0,0.00019726,2]
[369774012,1751723449969,-460.0,0.00019726,2]
[369774014,1751723449979,-460.0,0.00019726,2]
[369774017,1751723449989,-460.0,0.00019726,2]
[369774019,1751723450001,-460.0,0.00019726,2]
[369774020,1751723450010,-672.14,0.00019726,2]
[369774023,1751723450021,-460.0,0.00019726,2]
[369774025,1751723450030,-460.0,0.00019726,2]
[369774027,1751723450041,-519.83,0.00019726,2]
[369774029,1751723450050,-460.0,0.00019726,2]
[369774031,1751723450059,-460.0,0.00019726,2]
[369774033,1751723450069,-460.0,0.00019726,2]
[369774035,1751723450078,-982.69,0.00019726,2]
[369774037,1751723450087,-2107.25,0.00019726,2]
[369774039,1751723450098,-711.27,0.00019726,2]
[369774041,1751723450107,-815.76,0.00019726,2]
[369774043,1751723450116,-460.0,0.00019726,2]
[369774045,1751723450126,-524.75,0.00019726,2]
[369774047,1751723450136,-460.0,0.00019726,2]
[369774049,1751723450146,-460.0,0.00019726,2]
[369774051,1751723450156,-460.0,0.00019726,2]
[369774053,1751723450165,-473.21,0.00019726,2]
[369774055,1751723450174,-460.0,0.00019726,2]
[369774057,1751723450184,-460.0,0.00019726,2]
[369774059,1751723450193,-430.0,0.00019726,2]
[369774061,1751723450203,-917.08,0.00019726,2]
[369774063,1751723450217,-3025.45,0.00019726,2]
[369774065,1751723450226,-557.86096655,0.00019749,2]
[369774067,1751723450235,-500.0,0.00019785,2]
[369774069,1751723450245,-500.0,0.00019786,2]
[369774071,1751723450255,-160.15683522,0.00019786,2]
[369774073,1751723450264,-500.0,0.0001981,2]
[369774075,1751723450273,-500.0,0.0001981,2]
[369774077,1751723450282,-207.4,0.00019846,2]
[369774079,1751723450292,-585.24887603,0.00019883,2]
[369774081,1751723450301,-760.41962601,0.000199,2]
[369774083,1751723450311,-1000.0,0.00019972,2]
[369774085,1751723450320,-682.1,0.00019972,2]
[369774087,1751723450329,-557.86096655,0.00019972,2]
[369774089,1751723450338,-500.0,0.00019973,2]
[369774091,1751723450347,-258.65295974,0.00019973,2]
[369774093,1751723450357,-500.0,0.00019973,2]
[369774095,1751723450366,-500.0,0.00019973,2]
[369774097,1751723450375,-500.0,0.00019973,2]
[369774099,1751723450384,-500.0,0.00019973,2]
[369774101,1751723450393,-460.0,0.00019999,2]
[369774103,1751723450402,-925.87,0.00019999,2]
[369774105,1751723450411,-1864.77,0.00019999,2]
[369774107,1751723450421,-460.0,0.00019999,2]
[369774109,1751723450430,-593.26,0.00019999,2]
[369774111,1751723450439,-460.0,0.00019999,2]
[369774113,1751723450449,-3967.02,0.00019999,2]
[369774115,1751723450459,-1925.88,0.00019999,2]
[369774117,1751723450468,-919.28,0.00019999,2]
[369774119,1751723450477,-460.0,0.00019999,2]
[369774121,1751723450486,-1607.11,0.00019999,2]
[369774123,1751723450495,-3078.34,0.00019999,2]
[369774126,1751723450504,-460.0,0.00019999,2]
[369774127,1751723450514,-1064.3,0.00019999,2]
[369774129,1751723450523,-501.42420276,0.0002,2]
[369774131,1751723450532,-501.14347341,0.0002,2]
[369774134,1751723450541,-460.0,0.0002,2]
[369774136,1751723450551,-464.34,0.0002,2]
[369774138,1751723450561,-460.0,0.0002,2]
[369774140,1751723450569,-460.0,0.0002,2]
[369774142,1751723450579,-602.95636315,0.0002,2]
[369774144,1751723450588,-460.0,0.0002,2]
[369774146,1751723450597,-460.0,0.0002,2]
[369774148,1751723450606,-460.0,0.0002,2]
[369774150,1751723450615,-460.0,0.0002,2]
[369774152,1751723450624,-460.0,0.0002,2]
[369774154,1751723450633,-460.0,0.0002,2]
[369774156,1751723450642,-460.0,0.0002,2]
[369774158,1751723450651,-460.0,0.0002,2]
[369774159,1751723450659,-460.0,0.0002,2]
[369774162,1751723450669,-460.0,0.0002,2]
[369774164,1751723450678,-460.0,0.0002,2]
[369774166,1751723450687,-460.0,0.0002,2]
[369774168,1751723450696,-460.0,0.0002,2]
[369774170,1751723450705,-460.0,0.0002,2]
[369774172,1751723450714,-460.0,0.0002,2]
[369774174,1751723450723,-460.0,0.0002,2]
[369774176,1751723450733,-504.42756139,0.0002,2]
[369774178,1751723450742,-460.0,0.0002,2]
[369774180,1751723450751,-449.63948808,0.0002,2]
[369774182,1751723450761,-460.0,0.0002,2]
[369774184,1751723450770,-511.62,0.0002,2]
[369774186,1751723450779,-460.0,0.0002,2]
[369774187,1751723450788,-460.0,0.0002,2]
[369774188,1751723450797,-460.0,0.0002,2]
[369774189,1751723450807,-460.0,0.0002,2]
[369774190,1751723450816,-460.0,0.0002,2]
[369774191,1751723450825,-460.0,0.0002,2]
[369774192,1751723450834,-460.0,0.0002,2]
[369774193,1751723450843,-711.56,0.0002,2]
[369774194,1751723450853,-1130.15,0.0002,2]
[369774195,1751723450862,-463.7498021,0.0002,2]
[369774196,1751723450872,-460.0,0.0002,2]
[369774197,1751723450881,-460.0,0.0002,2]
[369774198,1751723450890,-460.0,0.0002,2]
[369774199,1751723450900,-460.0,0.0002,2]
[369774200,1751723450909,-460.0,0.0002,2]
[369774201,1751723450919,-460.0,0.0002,2]
[369774202,1751723450928,-460.0,0.0002,2]
[369774203,1751723450937,-460.0,0.0002,2]
[369774204,1751723450947,-460.0,0.0002,2]
[369774205,1751723450956,-460.0,0.0002,2]
[369774206,1751723450965,-460.0,0.0002,2]
[369774207,1751723450975,-974.25,0.0002,2]
[369774209,1751723450984,-460.0,0.0002,2]
[369774211,1751723450994,-460.0,0.0002,2]
[369774213,1751723451003,-460.0,0.0002,2]
[369774215,1751723451013,-460.0,0.0002,2]
[369774217,1751723451022,-460.0,0.0002,2]
[369774219,1751723451031,-1078.25,0.0002,2]
[369774221,1751723451041,-460.0,0.0002,2]
[369774223,1751723451051,-460.0,0.0002,2]
[369774225,1751723451060,-460.0,0.0002,2]
[369774227,1751723451069,-554.17672188,0.0002,2]
[369774229,1751723451078,-460.0,0.0002,2]
[369774231,1751723451088,-515.54,0.0002,2]
[369774233,1751723451097,-460.0,0.0002,2]
[369774235,1751723451107,-460.0,0.0002,2]
[369774237,1751723451117,-483.35,0.0002,2]
[369774239,1751723451127,-460.0,0.0002,2]
[369774241,1751723451136,-460.0,0.0002,2]
[369774243,1751723451145,-460.0,0.0002,2]
[369774245,1751723451155,-756.12,0.0002,2]
[369774247,1751723451164,-460.0,0.0002,2]
[369774249,1751723451174,-537.85,0.0002,2]
[369774251,1751723451183,-460.0,0.0002,2]
[369774253,1751723451193,-611.74,0.0002,2]
[369774255,1751723451202,-547.82,0.0002,2]
[369774257,1751723451214,-480.51,0.0002,2]
[369774259,1751723451224,-205.72,0.0002,2]
[369774261,1751723451235,-460.0,0.0002,2]
[369774263,1751723451244,-460.0,0.0002,2]
[369774265,1751723451253,-460.0,0.0002,2]
[369774267,1751723451262,-460.0,0.0002,2]
[369774269,1751723451271,-460.0,0.0002,2]
[369774271,1751723451282,-529.89902784,0.0002,2]
[369774273,1751723451292,-460.0,0.0002,2]
[369774275,1751723451302,-460.0,0.0002,2]
[369774277,1751723451313,-460.0,0.0002,2]
[369774279,1751723451322,-460.0,0.0002,2]
[369774281,1751723451331,-460.0,0.0002,2]
[369774283,1751723451341,-460.0,0.0002,2]
[369774285,1751723451351,-472.91,0.0002,2]
[369774287,1751723451361,-460.0,0.0002,2]
[369774289,1751723451371,-498.65,0.0002,2]
[369774291,1751723451381,-460.0,0.0002,2]
[369774294,1751723451390,-460.0,0.0002,2]
[369774296,1751723451400,-460.0,0.0002,2]
[369774297,1751723451409,-460.0,0.0002,2]
[369774300,1751723451418,-460.0,0.0002,2]
[369774302,1751723451430,-460.0,0.0002,2]
[369774304,1751723451440,-1062.86,0.0002,2]
[369774306,1751723451449,-460.0,0.0002,2]
[369774308,1751723451459,-680.18,0.0002,2]
[369774310,1751723451469,-460.0,0.0002,2]
[369774312,1751723451478,-460.0,0.0002,2]
[369774314,1751723451488,-460.0,0.0002,2]
[369774316,1751723451498,-460.0,0.0002,2]
[369774318,1751723451507,-460.0,0.0002,2]
[369774320,1751723451517,-460.0,0.0002,2]
[369774322,1751723451526,-4944.9,0.0002,2]
[369774324,1751723451535,-7432.9,0.0002,2]
[369774326,1751723451545,-1700.45,0.0002,2]
[369774328,1751723451559,-460.0,0.0002,2]
[369774330,1751723451568,-505.81,0.0002,2]
[369774331,1751723451577,-460.0,0.0002,2]
[369774334,1751723451588,-460.0,0.0002,2]
[369774336,1751723451598,-460.0,0.0002,2]
[369774338,1751723451608,-460.0,0.0002,2]
[369774340,1751723451617,-460.0,0.0002,2]
[369774342,1751723451628,-460.0,0.0002,2]
[369774344,1751723451637,-643.48,0.0002,2]
[369774346,1751723451646,-460.0,0.0002,2]
[369774348,1751723451655,-5145.82,0.0002,2]
[369774350,1751723451665,-460.0,0.0002,2]
[369774352,1751723451674,-460.0,0.0002,2]
[369774354,1751723451683,-659.36,0.0002,2]
[369774356,1751723451692,-1335.55,0.0002,2]
[369774358,1751723451702,-460.0,0.0002,2]
[369774360,1751723451712,-1423.93,0.0002,2]
[369774362,1751723451722,-1082.03,0.0002,2]
[369774364,1751723451731,-596.66253796,0.0002,2]
[369774366,1751723451740,-460.0,0.0002,2]
[369774368,1751723451750,-529.32,0.0002,2]
[369774370,1751723451759,-640.5,0.0002,2]
[369774372,1751723451769,-460.0,0.0002,2]
[369774374,1751723451778,-541.97296764,0.0002,2]
[369774376,1751723451787,-2728.6,0.0002,2]
[369774378,1751723451797,-875.73,0.0002,2]
[369774380,1751723451807,-460.0,0.0002,2]
[369774382,1751723451816,-460.0,0.0002,2]
[369774384,1751723451826,-486.18,0.0002,2]
[369774386,1751723451835,-460.0,0.0002,2]
[369774388,1751723451844,-460.0,0.0002,2]
[369774390,1751723451854,-460.0,0.0002,2]
[369774392,1751723451863,-460.0,0.0002,2]
[369774394,1751723451873,-460.0,0.0002,2]
[369774412,1751723452035,-460.0,0.0002,2]
[369774414,1751723452053,-460.0,0.0002,2]
[369774417,1751723452063,-460.0,0.0002,2]
[369774419,1751723452072,-460.0,0.0002,2]
[369774421,1751723452082,-460.0,0.0002,2]
[369774423,1751723452092,-460.0,0.0002,2]
[369774425,1751723452102,-460.0,0.0002,2]
[369774427,1751723452112,-746.64,0.0002,2]
[369774429,1751723452122,-2872.22,0.0002,2]
[369774431,1751723452131,-460.0,0.0002,2]
[369774433,1751723452141,-460.0,0.0002,2]
[369774435,1751723452151,-460.0,0.0002,2]
[369774437,1751723452161,-460.0,0.0002,2]
[369774439,1751723452170,-506.36,0.0002,2]
[369774441,1751723452180,-460.0,0.0002,2]
[369774443,1751723452190,-460.0,0.0002,2]
[369774445,1751723452199,-460.0,0.0002,2]
[369774447,1751723452211,-3582.59,0.0002,2]
[369774449,1751723452221,-845.67,0.0002,2]
[369774451,1751723452231,-460.0,0.0002,2]
[369774453,1751723452241,-460.0,0.0002,2]
[369774455,1751723452251,-460.0,0.0002,2]
[369774457,1751723452261,-460.0,0.0002,2]
[369774459,1751723452271,-460.0,0.0002,2]
[369774461,1751723452281,-4647.56,0.0002,2]
[369774463,1751723452291,-885.51,0.0002,2]
[369774465,1751723452303,-460.0,0.0002,2]
[369774467,1751723452312,-460.0,0.0002,2]
[369774469,1751723452322,-460.0,0.0002,2]
[369774471,1751723452331,-848.47,0.0002,2]
[369774473,1751723452340,-460.0,0.0002,2]
[369774475,1751723452350,-1333.3,0.0002,2]
[369774477,1751723452359,-330.98234547,0.0002,2]
[369774479,1751723452368,-460.0,0.0002,2]
[369774481,1751723452379,-684.97,0.0002,2]
[369774483,1751723452389,-460.0,0.0002,2]
[369774485,1751723452399,-669.14,0.0002,2]
[369774487,1751723452408,-460.0,0.0002,2]
[369774489,1751723452418,-460.0,0.0002,2]
[369774491,1751723452427,-956.18,0.0002,2]
[369774493,1751723452437,-473.96,0.0002,2]
[369774495,1751723452446,-460.0,0.0002,2]
[369774497,1751723452456,-460.0,0.0002,2]
[369774499,1751723452465,-2559.63,0.0002,2]
[369774501,1751723452474,-460.0,0.0002,2]
[369774503,1751723452484,-460.0,0.0002,2]
[369774505,1751723452494,-555.89,0.0002,2]
[369774507,1751723452504,-6144.38,0.0002,2]
[369774509,1751723452513,-460.0,0.0002,2]
[369774512,1751723452523,-1959.52,0.0002,2]
[369774514,1751723452532,-460.0,0.0002,2]
[369774516,1751723452541,-540.33,0.0002,2]
[369774518,1751723452550,-721.86,0.0002,2]
[369774520,1751723452560,-84456.42127852,0.0002,2]
[369774540,1751723452742,-176931.15378748,0.0002,2]
[369774542,1751723452752,-589.15,0.0002,2]
[369774544,1751723452762,-2585.05,0.0002,2]
[369774547,1751723452772,-1307.5,0.0002,2]
[369774548,1751723452783,-460.0,0.0002,2]
[369774550,1751723452792,-475.76,0.0002,2]
[369774553,1751723452802,-460.0,0.0002,2]
[369774555,1751723452811,-460.0,0.0002,2]
[369774557,1751723452821,-460.0,0.0002,2]
[369774559,1751723452830,-672.14,0.0002,2]
[369774560,1751723452841,-460.0,0.0002,2]
[369774562,1751723452852,-460.0,0.0002,2]
[369774565,1751723452862,-519.83,0.0002,2]
[369774567,1751723452872,-460.0,0.0002,2]
[369774569,1751723452882,-460.0,0.0002,2]
[369774571,1751723452892,-460.0,0.0002,2]
[369774573,1751723452901,-982.69,0.0002,2]
[369774575,1751723452911,-2107.25,0.0002,2]
[369774577,1751723452922,-711.27,0.0002,2]
[369774579,1751723452932,-338.35770381,0.0002,4]
[369774581,1751723452941,-815.76,0.0002,2]
[369774583,1751723452951,-460.0,0.0002,2]
[369774585,1751723452961,-524.75,0.0002,2]
[369774587,1751723452970,-460.0,0.0002,2]
[369774589,1751723452981,-460.0,0.0002,2]
[369774591,1751723452991,-460.0,0.0002,2]
[369774593,1751723453001,-473.21,0.0002,2]
[369774595,1751723453011,-460.0,0.0002,2]
[369774597,1751723453020,-447.77707372,0.0002,2]
[369774599,1751723453031,-917.08,0.0002,2]
[369774601,1751723453041,-3025.45,0.0002,2]
[369774603,1751723453051,-760.4196258,0.00020072,2]
[369774605,1751723453064,-246.88136,0.00020187,2]
[369774607,1751723453074,-760.4196258,0.00020245,2]
[369774609,1751723453084,-151.0,0.00020273,2]
[369774612,1751723453094,-460.0,0.00020273,2]
[369774614,1751723453104,-460.0,0.00020273,2]
[369774616,1751723453114,-478.0151022,0.00020273,2]
[369774618,1751723453124,-460.0,0.00020273,2]
[369774620,1751723453133,-460.0,0.00020273,2]
[369774622,1751723453143,-460.0,0.00020273,2]
[369774624,1751723453152,-460.0,0.00020273,2]
[369774626,1751723453161,-460.0,0.00020273,2]
[369774628,1751723453170,-512.50140471,0.00020273,2]
[369774630,1751723453179,-460.0,0.00020273,2]
[369774632,1751723453188,-460.0,0.00020273,2]
[369774634,1751723453198,-478.64,0.00020273,2]
[369774636,1751723453209,-460.0,0.00020273,2]
[369774638,1751723453219,-460.0,0.00020273,2]
[369774639,1751723453229,-460.0,0.00020273,2]
[369774642,1751723453238,-460.0,0.00020273,2]
[369774644,1751723453248,-460.0,0.00020273,2]
[369774646,1751723453257,-460.0,0.00020273,2]
[369774647,1751723453266,-460.0,0.00020273,2]
[369774650,1751723453276,-460.0,0.00020273,2]
[369774652,1751723453285,-333.63853218,0.00020273,2]
[369774654,1751723453294,-460.0,0.00020273,2]
[369774656,1751723453304,-511.62,0.00020273,2]
[369774658,1751723453313,-460.0,0.00020273,2]
[369774660,1751723453323,-532.28948056,0.00020273,2]
[369774662,1751723453333,-460.0,0.00020273,2]
[369774664,1751723453342,-460.0,0.00020273,2]
[369774666,1751723453352,-460.0,0.00020273,2]
[369774668,1751723453361,-460.0,0.00020273,2]
[369774670,1751723453371,-460.0,0.00020273,2]
[369774672,1751723453381,-711.56,0.00020273,2]
[369774674,1751723453390,-1130.15,0.00020273,2]
[369774676,1751723453400,-460.0,0.00020273,2]
[369774678,1751723453409,-460.0,0.00020273,2]
[369774680,1751723453419,-460.0,0.00020273,2]
[369774682,1751723453428,-460.0,0.00020273,2]
[369774684,1751723453437,-460.0,0.00020273,2]
[369774686,1751723453447,-460.0,0.00020273,2]
[369774688,1751723453457,-460.0,0.00020273,2]
[369774690,1751723453466,-460.0,0.00020273,2]
[369774692,1751723453475,-460.0,0.00020273,2]
[369774693,1751723453485,-460.0,0.00020273,2]
[369774694,1751723453495,-460.0,0.00020273,2]
[369774695,1751723453504,-974.25,0.00020273,2]
[369774696,1751723453513,-278.36746384,0.00020273,2]
[369774697,1751723453523,-460.0,0.00020273,2]
[369774698,1751723453532,-460.0,0.00020273,2]
[369774699,1751723453541,-460.0,0.00020273,2]
[369774700,1751723453551,-460.0,0.00020273,2]
[369774701,1751723453560,-1078.25,0.00020273,2]
[369774702,1751723453569,-460.0,0.00020273,2]
[369774703,1751723453578,-460.0,0.00020273,2]
[369774704,1751723453588,-460.0,0.00020273,2]
[369774705,1751723453597,-460.0,0.00020273,2]
[369774706,1751723453606,-515.54,0.00020273,2]
[369774707,1751723453615,-460.0,0.00020273,2]
[369774708,1751723453626,-460.0,0.00020273,2]
[369774709,1751723453635,-483.35,0.00020273,2]
[369774710,1751723453644,-460.0,0.00020273,2]
[369774712,1751723453653,-460.0,0.00020273,2]
[369774713,1751723453662,-460.0,0.00020273,2]
[369774715,1751723453672,-756.12,0.00020273,2]
[369774717,1751723453682,-460.0,0.00020273,2]
[369774719,1751723453691,-537.85,0.00020273,2]
[369774721,1751723453700,-460.0,0.00020273,2]
[369774723,1751723453709,-611.74,0.00020273,2]
[369774725,1751723453719,-547.82,0.00020273,2]
[369774727,1751723453729,-480.51,0.00020273,2]
[369774729,1751723453738,-460.0,0.00020273,2]
[369774731,1751723453748,-460.0,0.00020273,2]
[369774733,1751723453757,-460.0,0.00020273,2]
[369774735,1751723453766,-460.0,0.00020273,2]
[369774737,1751723453775,-465.06935796,0.00020273,2]
[369774739,1751723453785,-460.0,0.00020273,2]
[369774741,1751723453795,-460.0,0.00020273,2]
[369774743,1751723453804,-460.0,0.00020273,2]
[369774745,1751723453813,-460.0,0.00020273,2]
[369774747,1751723453822,-460.0,0.00020273,2]
[369774749,1751723453831,-460.0,0.00020273,2]
[369774751,1751723453841,-472.91,0.00020273,2]
[369774753,1751723453850,-532.4212057,0.00020273,2]
[369774755,1751723453859,-498.65,0.00020273,2]
[369774757,1751723453869,-460.0,0.00020273,2]
[369774759,1751723453879,-460.0,0.00020273,2]
[369774761,1751723453888,-460.0,0.00020273,2]
[369774763,1751723453898,-460.0,0.00020273,2]
[369774765,1751723453907,-460.0,0.00020273,2]
[369774767,1751723453916,-460.0,0.00020273,2]
[369774769,1751723453926,-1062.86,0.00020273,2]
[369774771,1751723453936,-460.0,0.00020273,2]
[369774773,1751723453946,-680.18,0.00020273,2]
[369774775,1751723453955,-460.0,0.00020273,2]
[369774777,1751723453964,-460.0,0.00020273,2]
[369774779,1751723453973,-460.0,0.00020273,2]
[369774781,1751723453983,-460.0,0.00020273,2]
[369774783,1751723453992,-460.0,0.00020273,2]
[369774785,1751723454002,-925.87,0.00020273,2]
[369774787,1751723454011,-460.0,0.00020273,2]
[369774789,1751723454021,-4944.9,0.00020273,2]
[369774791,1751723454031,-7432.9,0.00020273,2]
[369774793,1751723454041,-1700.45,0.00020273,2]
[369774795,1751723454051,-460.0,0.00020273,2]
[369774797,1751723454060,-505.81,0.00020273,2]
[369774799,1751723454069,-460.0,0.00020273,2]
[369774801,1751723454079,-460.0,0.00020273,2]
[369774803,1751723454088,-460.0,0.00020273,2]
[369774805,1751723454097,-460.0,0.00020273,2]
[369774807,1751723454106,-460.0,0.00020273,2]
[369774809,1751723454115,-460.0,0.00020273,2]
[369774811,1751723454125,-643.48,0.00020273,2]
[369774813,1751723454134,-460.0,0.00020273,2]
[369774815,1751723454144,-460.0,0.00020273,2]
[369774817,1751723454155,-5145.82,0.00020273,2]
[369774819,1751723454166,-460.0,0.00020273,2]
[369774822,1751723454176,-659.36,0.00020273,2]
[369774824,1751723454186,-1335.55,0.00020273,2]
[369774826,1751723454195,-460.0,0.00020273,2]
[369774828,1751723454204,-1423.93,0.00020273,2]
[369774829,1751723454217,-1082.03,0.00020273,2]
[369774831,1751723454226,-460.0,0.00020273,2]
[369774833,1751723454236,-529.32,0.00020273,2]
[369774835,1751723454245,-640.5,0.00020273,2]
[369774837,1751723454256,-1864.77,0.00020273,2]
[369774839,1751723454266,-460.0,0.00020273,2]
[369774841,1751723454275,-2728.6,0.00020273,2]
[369774844,1751723454286,-875.73,0.00020273,2]
[369774846,1751723454295,-460.0,0.00020273,2]
[369774848,1751723454305,-460.0,0.00020273,2]
[369774850,1751723454315,-460.0,0.00020273,2]
[369774852,1751723454324,-486.18,0.00020273,2]
[369774854,1751723454333,-460.0,0.00020273,2]
[369774856,1751723454342,-195.10041088,0.00020273,2]
[369774858,1751723454352,-460.0,0.00020273,2]
[369774860,1751723454361,-460.0,0.00020273,2]
[369774862,1751723454370,-460.0,0.00020273,2]
[369774864,1751723454380,-460.0,0.00020273,2]
[369774866,1751723454389,-460.0,0.00020273,2]
[369774868,1751723454399,-460.0,0.00020273,2]
[369774875,1751723454453,-460.0,0.00020273,2]
[369774877,1751723454462,-460.0,0.00020273,2]
[369774879,1751723454472,-746.64,0.00020273,2]
[369774881,1751723454481,-2872.22,0.00020273,2]
[369774883,1751723454491,-593.26,0.00020273,2]
[369774885,1751723454499,-460.0,0.00020273,2]
[369774886,1751723454508,-460.0,0.00020273,2]
[369774888,1751723454517,-460.0,0.00020273,2]
[369774891,1751723454527,-460.0,0.00020273,2]
[369774892,1751723454538,-506.36,0.00020273,2]
[369774895,1751723454547,-460.0,0.00020273,2]
[369774897,1751723454557,-460.0,0.00020273,2]
[369774899,1751723454566,-460.0,0.00020273,2]
[369774900,1751723454575,-3582.59,0.00020273,2]
[369774903,1751723454585,-845.67,0.00020273,2]
[369774905,1751723454594,-460.0,0.00020273,2]
[369774906,1751723454604,-460.0,0.00020273,2]
[369774908,1751723454614,-460.0,0.00020273,2]
[369774910,1751723454623,-460.0,0.00020273,2]
[369774912,1751723454633,-460.0,0.00020273,2]
[369774915,1751723454643,-4647.56,0.00020273,2]
[369774917,1751723454652,-885.51,0.00020273,2]
[369774919,1751723454662,-460.0,0.00020273,2]
[369774921,1751723454671,-460.0,0.00020273,2]
[369774923,1751723454680,-460.0,0.00020273,2]
[369774925,1751723454690,-460.0,0.00020273,2]
[369774926,1751723454699,-848.47,0.00020273,2]
[369774928,1751723454708,-460.0,0.00020273,2]
[369774930,1751723454718,-1333.3,0.00020273,2]
[369774932,1751723454727,-460.0,0.00020273,2]
[369774935,1751723454736,-3967.02,0.00020273,2]
[369774936,1751723454746,-684.97,0.00020273,2]
[369774939,1751723454755,-460.0,0.00020273,2]
[369774940,1751723454764,-669.14,0.00020273,2]
[369774942,1751723454773,-460.0,0.00020273,2]
[369774944,1751723454782,-460.0,0.00020273,2]
[369774946,1751723454792,-1925.88,0.00020273,2]
[369774949,1751723454802,-956.18,0.00020273,2]
[369774951,1751723454811,-473.96,0.00020273,2]
[369774952,1751723454821,-460.0,0.00020273,2]
[369774954,1751723454830,-2559.63,0.00020273,2]
[369774955,1751723454839,-460.0,0.00020273,2]
[369774957,1751723454849,-460.0,0.00020273,2]
[369774958,1751723454858,-460.0,0.00020273,2]
[369774960,1751723454867,-919.28,0.00020273,2]
[369774961,1751723454877,-555.89,0.00020273,2]
[369774962,1751723454886,-6144.38,0.00020273,2]
[369774964,1751723454895,-460.0,0.00020273,2]
[369774966,1751723454905,-460.0,0.00020273,2]
[369774967,1751723454915,-1959.52,0.00020273,2]
[369774969,1751723454925,-460.0,0.00020273,2]
[369774970,1751723454935,-540.33,0.00020273,2]
[369774972,1751723454946,-721.86,0.00020273,2]
[369774973,1751723454955,-589.15,0.00020273,2]
[369774975,1751723454964,-2585.05,0.00020273,2]
[369774976,1751723454973,-1607.11,0.00020273,2]
[369774978,1751723454982,-1307.5,0.00020273,2]
[369774979,1751723454991,-460.0,0.00020273,2]
[369774981,1751723455000,-475.76,0.00020273,2]
[369774982,1751723455009,-460.0,0.00020273,2]
[369774984,1751723455019,-460.0,0.00020273,2]
[369774985,1751723455028,-672.14,0.00020273,2]
[369774987,1751723455037,-460.0,0.00020273,2]
[369774989,1751723455047,-460.0,0.00020273,2]